fUSD/lending_fUSD_20250820
["ID","MTS","AMOUNT","RATE_DAILY","PERIOD"]
[380343989,1755699400846,-478.8,0.00030136,120]
[380343990,1755699400893,-1153.39,0.00030136,120]
[380343991,1755699400941,-400.0,0.00030136,120]
[380343992,1755699400990,-400.0,0.00030136,120]
[380343993,1755699401041,-961.98,0.00030136,120]
[380343994,1755699401091,-400.0,0.00030136,120]
[380343995,1755699401142,-641.34,0.00030136,120]
[380343996,1755699401191,-1077.76,0.00030136,120]
[380343997,1755699401238,-1499.36,0.00030136,120]
[380343998,1755699401287,-2050.78,0.00030136,120]
[380343999,1755699401341,-1194.11,0.00030136,120]
[380344000,1755699401388,-400.0,0.00030136,120]
[380344001,1755699401437,-2040.52,0.00030136,120]
[380344002,1755699401485,-1668.37,0.00030136,120]
[380344003,1755699401530,-400.0,0.00030136,120]
[380344004,1755699401579,-1790.34,0.00030136,120]
[380344005,1755699401628,-400.0,0.00030136,120]
[380344006,1755699401979,-500.0,0.00030136,120]
[380344007,1755699402031,-500.0,0.00030136,120]
[380344008,1755699402081,-500.0,0.00030136,120]
[380344009,1755699402132,-500.0,0.00030136,120]
[380344010,1755699402182,-500.0,0.00030136,120]
[380344011,1755699402232,-1436.18,0.00030136,120]
[380344012,1755699402282,-500.0,0.00030136,120]
[380344013,1755699402333,-442.45,0.00030136,120]
[380344014,1755699402381,-500.0,0.00030136,120]
[380344015,1755699402429,-400.0,0.00030136,120]
[380344016,1755699402475,-588.96635011,0.00030136,120]
[380344017,1755699402522,-1484.06,0.00030136,120]
[380344018,1755699402570,-1796.72,0.00030136,120]
[380344019,1755699402618,-5260.83,0.00030136,120]
[380344020,1755699402669,-1300.03,0.00030136,120]
[380344021,1755699402717,-450.99,0.00030136,120]
[380344022,1755699402766,-400.0,0.00030136,120]
[380344023,1755699402815,-952.02,0.00030136,120]
[380344024,1755699402865,-483.64,0.00030136,120]
[380344025,1755699402917,-3154.11,0.00030136,120]
[380344026,1755699402965,-660.56,0.00030136,120]
[380344027,1755699403018,-1652.37,0.00030136,120]
[380344028,1755699403066,-400.0,0.00030136,120]
[380344029,1755699403115,-927.36,0.00030136,120]
[380344030,1755699403173,-1931.63,0.00030136,120]
[380344031,1755699403222,-719.84,0.00030136,120]
[380344032,1755699403272,-1395.89,0.00030136,120]
[380344033,1755699403322,-400.0,0.00030136,120]
[380344034,1755699403372,-528.91,0.00030136,120]
[380344035,1755699403422,-400.0,0.00030136,120]
[380344036,1755699403472,-400.0,0.00030136,120]
[380344037,1755699403521,-1560.2,0.00030136,120]
[380344038,1755699403569,-1119.58,0.00030136,120]
[380344039,1755699403619,-400.0,0.00030136,120]
[380344040,1755699403671,-590.25,0.00030136,120]
[380344041,1755699403725,-1548.22,0.00030136,120]
[380344042,1755699403783,-1343.1,0.00030136,120]
[380344043,1755699403841,-779.84,0.00030136,120]
[380344044,1755699403895,-1333.1,0.00030136,120]
[380344045,1755699403948,-1553.77,0.00030136,120]
[380344046,1755699403999,-1708.51,0.00030136,118]
[380344047,1755699404058,-400.0,0.00030136,120]
[380344048,1755699404110,-400.0,0.00030136,120]
[380344049,1755699404170,-1590.68,0.00030136,120]
[380344050,1755699404222,-4329.87,0.00030136,120]
[380344051,1755699404277,-400.0,0.00030136,120]
[380344052,1755699404327,-1064.03,0.00030136,120]
[380344053,1755699404380,-400.0,0.00030136,120]
[380344054,1755699404432,-400.0,0.00030136,120]
[380344055,1755699404482,-827.66,0.00030136,120]
[380344056,1755699404533,-400.0,0.00030136,120]
[380344057,1755699404591,-1348.34,0.00030136,60]
[380344058,1755699404655,-1270.73,0.00030136,120]
[380344059,1755699404707,-873.29,0.00030136,120]
[380344060,1755699404757,-1581.38,0.00030136,120]
[380344061,1755699404809,-1460.35,0.00030136,120]
[380344062,1755699404859,-2840.68,0.00030136,120]
[380344063,1755699404909,-400.0,0.00030136,120]
[380344064,1755699404960,-1277.58,0.00030136,120]
[380344065,1755699405012,-5067.21,0.00030136,120]
[380344066,1755699405066,-1300.77,0.00030136,120]
[380344067,1755699405117,-400.0,0.00030136,120]
[380344068,1755699405173,-1056.24,0.00030136,120]
[380344069,1755699405235,-400.0,0.00030136,120]
[380344070,1755699405286,-400.0,0.00030136,120]
[380344071,1755699405335,-400.0,0.00030136,120]
[380344072,1755699405388,-4945.2,0.00030136,120]
[380344073,1755699405438,-2221.13,0.00030136,120]
[380344074,1755699405487,-400.0,0.00030136,120]
[380344075,1755699405537,-2341.73,0.00030136,120]
[380344076,1755699405597,-400.0,0.00030136,120]
[380344077,1755699405652,-400.0,0.00030136,120]
[380344078,1755699405703,-573.83,0.00030136,120]
[380344079,1755699405754,-1644.15,0.00030136,120]
[380344080,1755699405808,-1294.05,0.00030136,120]
[380344081,1755699405861,-400.0,0.00030136,120]
[380344082,1755699405913,-690.23,0.00030136,120]
[380344083,1755699405967,-400.0,0.00030136,120]
[380344084,1755699406023,-400.03445599,0.00030136,120]
[380344085,1755699406078,-1182.07,0.00030136,120]
[380344086,1755699406134,-1182.07,0.00030136,120]
[380344087,1755699406190,-1182.07,0.00030136,120]
[380344088,1755699406255,-1182.07,0.00030136,120]
[380344089,1755699406316,-1182.07,0.00030136,120]
[380344090,1755699406370,-1182.07,0.00030136,120]
[380344091,1755699406422,-1051.17,0.00030136,120]
[380344092,1755699406474,-1182.07,0.00030136,120]
[380344093,1755699406524,-3344.29,0.00030136,120]
[380344094,1755699406572,-400.0,0.00030136,120]
[380344095,1755699406619,-1182.07,0.00030136,120]
[380344096,1755699406669,-1182.07,0.00030136,120]
[380344097,1755699406719,-1449.34,0.00030136,120]
[380344098,1755699406771,-1054.91,0.00030136,120]
[380344099,1755699406818,-400.0,0.00030136,120]
[380344100,1755699406870,-1182.07,0.00030136,120]
[380344101,1755699406917,-1040.04,0.00030136,120]
[380344102,1755699406966,-1182.07,0.00030136,120]
[380344103,1755699407022,-1182.07,0.00030136,120]
[380344104,1755699407073,-1182.07,0.00030136,120]
[380344105,1755699407129,-1139.91,0.00030136,120]
[380344106,1755699407183,-400.0,0.00030136,120]
[380344107,1755699407239,-2133.86,0.00030136,120]
[380344108,1755699407293,-400.0,0.00030136,120]
[380344109,1755699407347,-1438.47,0.00030136,120]
[380344110,1755699407401,-1684.08,0.00030136,120]
[380344111,1755699407456,-1767.27,0.00030136,120]
[380344112,1755699407505,-958.58,0.00030136,120]
[380344113,1755699407562,-471.68,0.00030136,120]
[380344114,1755699407633,-1836.32,0.00030136,120]
[380344115,1755699407701,-1652.67,0.00030136,120]
[380344116,1755699407753,-6181.74,0.00030136,120]
[380344117,1755699407806,-527.7,0.00030136,120]
[380344118,1755699407860,-1725.69,0.00030136,120]
[380344119,1755699407913,-1386.55,0.00030136,120]
[380344120,1755699407967,-1179.32,0.00030136,120]
[380344121,1755699408491,-500.0,0.00030136,120]
[380344122,1755699408541,-500.0,0.00030136,120]
[380344123,1755699408594,-500.0,0.00030136,120]
[380344124,1755699408647,-2273.29,0.00030136,120]
[380344125,1755699408698,-500.0,0.00030136,120]
[380344126,1755699408756,-500.0,0.00030136,120]
[380344127,1755699408816,-500.0,0.00030136,120]
[380344128,1755699408871,-1620.21,0.00030136,120]
[380344129,1755699408921,-447.16312703,0.00030136,120]
[380344130,1755699408972,-467.83,0.00030136,120]
[380344131,1755699409027,-400.0,0.00030136,120]
[380344132,1755699409079,-1182.07,0.00030136,120]
[380344133,1755699409129,-1182.07,0.00030136,120]
[380344134,1755699409180,-1182.07,0.00030136,120]
[380344135,1755699409232,-1182.07,0.00030136,120]
[380344136,1755699409284,-1182.07,0.00030136,120]
[380344137,1755699409336,-1123.75,0.00030136,120]
[380344138,1755699409386,-2740.17,0.00030136,120]
[380344139,1755699409435,-892.86,0.00030136,120]
[380344140,1755699409486,-1182.07,0.00030136,120]
[380344141,1755699409536,-400.0,0.00030136,120]
[380344142,1755699409586,-1182.07,0.00030136,120]
[380344143,1755699409637,-1182.07,0.00030136,120]
[380344144,1755699409691,-1778.01,0.00030136,120]
[380344145,1755699409740,-1182.07,0.00030136,120]
[380344146,1755699409792,-1182.07,0.00030136,120]
[380344147,1755699409845,-1182.15265002,0.00030136,120]
[380344148,1755699409895,-2096.35,0.00030136,120]
[380344149,1755699409947,-2813.55,0.00030136,120]
[380344150,1755699410002,-400.0,0.00030136,120]
[380344151,1755699410055,-665.47,0.00030136,120]
[380344152,1755699410105,-1502.1,0.00030136,120]
[380344153,1755699410155,-400.0,0.00030136,120]
[380344154,1755699410205,-1665.3,0.00030136,120]
[380344155,1755699410254,-2068.19,0.00030136,120]
[380344156,1755699410309,-914.06,0.00030136,120]
[380344157,1755699410358,-1067.23,0.00030136,120]
[380344158,1755699410406,-1313.65,0.00030136,120]
[380344159,1755699410457,-2132.55,0.00030136,120]
[380344160,1755699410506,-2060.53,0.00030136,120]
[380344161,1755699410558,-443.29880132,0.00030136,120]
[380344162,1755699410608,-2477.56,0.00030136,120]
[380344163,1755699410657,-560.46,0.00030136,120]
[380344164,1755699410705,-926.58,0.00030136,120]
[380344165,1755699410754,-400.0,0.00030136,120]
[380344166,1755699410804,-716.0,0.00030136,120]
[380344167,1755699410853,-3104.91,0.00030136,120]
[380344168,1755699410908,-3104.91,0.00030136,120]
[380344169,1755699410961,-1296.11,0.00030136,120]
[380344170,1755699411013,-3104.91,0.00030136,120]
[380344171,1755699411069,-2521.95,0.00030136,120]
[380344172,1755699411125,-3104.91,0.00030136,120]
[380344173,1755699411178,-450.21,0.00030136,120]
[380344174,1755699411228,-3104.91,0.00030136,120]
[380344175,1755699411279,-3104.91,0.00030136,120]
[380344176,1755699411331,-3104.91,0.00030136,120]
[380344177,1755699411384,-1424.59,0.00030136,120]
[380344178,1755699411437,-3104.91,0.00030136,120]
[380344179,1755699411483,-1194.36,0.00030136,120]
[380344180,1755699411529,-3104.91,0.00030136,120]
[380344181,1755699411577,-1433.2,0.00030136,120]
[380344182,1755699411625,-3104.91,0.00030136,120]
[380344183,1755699411673,-651.79,0.00030136,120]
[380344184,1755699411723,-3104.91,0.00030136,120]
[380344185,1755699411778,-1456.23,0.00030136,120]
[380344186,1755699411837,-3104.91,0.00030136,120]
[380344187,1755699411893,-1490.38,0.00030136,120]
[380344188,1755699411946,-3104.91,0.00030136,120]
[380344189,1755699411997,-3104.91,0.00030136,120]
[380344190,1755699412048,-2253.76,0.00030136,120]
[380344191,1755699412100,-3104.91,0.00030136,120]
[380344192,1755699412155,-3104.91,0.00030136,120]
[380344193,1755699412219,-713.38,0.00030136,120]
[380344194,1755699412276,-1544.17,0.00030136,120]
[380344195,1755699412329,-6177.17,0.00030136,120]
[380344196,1755699412377,-1756.81,0.00030136,120]
[380344197,1755699412428,-400.0,0.00030136,120]
[380344198,1755699412484,-2017.39,0.00030136,120]
[380344199,1755699412546,-1667.31,0.00030136,120]
[380344200,1755699412605,-1834.51,0.00030136,120]
[380344201,1755699412661,-1657.64,0.00030136,120]
[380344202,1755699412715,-1328.29,0.00030136,120]
[380344203,1755699412766,-1328.29,0.00030136,120]
[380344204,1755699412830,-507.67,0.00030136,120]
[380344205,1755699412884,-1328.29,0.00030136,120]
[380344206,1755699412936,-2190.54,0.00030136,120]
[380344207,1755699412987,-1328.29,0.00030136,120]
[380344208,1755699413042,-3104.91,0.00030136,120]
[380344209,1755699413101,-1883.14,0.00030136,120]
[380344210,1755699413160,-1328.29,0.00030136,120]
[380344211,1755699413212,-3104.91,0.00030136,120]
[380344212,1755699413264,-1328.29,0.00030136,120]
[380344213,1755699413321,-400.0,0.00030136,120]
[380344214,1755699413382,-3104.91,0.00030136,120]
[380344215,1755699413435,-1328.29,0.00030136,120]
[380344216,1755699413485,-1683.37,0.00030136,120]
[380344217,1755699413533,-1328.29,0.00030136,120]
[380344218,1755699413581,-1328.29,0.00030136,120]
[380344219,1755699413627,-3104.91,0.00030136,120]
[380344220,1755699413676,-3104.91,0.00030136,120]
[380344221,1755699413724,-1189.82,0.00030136,120]
[380344222,1755699413774,-3104.91,0.00030136,120]
[380344223,1755699413825,-1328.29,0.00030136,120]
[380344224,1755699413877,-1328.29,0.00030136,120]
[380344225,1755699413928,-3104.91,0.00030136,120]
[380344226,1755699413979,-1328.29,0.00030136,120]
[380344227,1755699414031,-3104.94313367,0.00030136,120]
[380344228,1755699414082,-1328.29,0.00030136,120]
[380344229,1755699414136,-2522.44,0.00030136,120]
[380344230,1755699414184,-1328.29,0.00030136,120]
[380344231,1755699414233,-1508.85,0.00030136,120]
[380344232,1755699414284,-1328.29,0.00030136,120]
[380344233,1755699414334,-1731.93,0.00030136,120]
[380344234,1755699414385,-1328.29,0.00030136,120]
[380344235,1755699414781,-400.0,0.00030136,120]
[380344236,1755699414837,-1328.29,0.00030136,120]
[380344237,1755699414901,-1328.29,0.00030136,120]
[380344238,1755699414955,-648.74,0.00030136,120]
[380344239,1755699415009,-1328.29,0.00030136,120]
[380344240,1755699415064,-1011.18,0.00030136,120]
[380344241,1755699415114,-1328.29,0.00030136,120]
[380344242,1755699415163,-1328.29,0.00030136,120]
[380344243,1755699415212,-1488.05,0.00030136,120]
[380344244,1755699415266,-1328.29,0.00030136,120]
[380344245,1755699415324,-3364.73,0.00030136,120]
[380344246,1755699415377,-1328.29,0.00030136,120]
[380344247,1755699415431,-1328.44631027,0.00030136,120]
[380344248,1755699415484,-2004.55,0.00030136,120]
[380344249,1755699415535,-544.36,0.00030136,120]
[380344250,1755699415591,-400.0,0.00030136,120]
[380344251,1755699415643,-1172.98,0.00030136,120]
[380344252,1755699415694,-1428.7,0.00030136,120]
[380344253,1755699415745,-1826.69,0.00030136,120]
[380344254,1755699415796,-730.04,0.00030136,120]
[380344255,1755699415849,-400.0,0.00030136,120]
[380344256,1755699415903,-1546.17,0.00030136,120]
[380344257,1755699415953,-400.0,0.00030136,120]
[380344258,1755699416007,-1335.09,0.00030136,120]
[380344259,1755699416063,-400.0,0.00030136,120]
[380344260,1755699416115,-1854.27,0.00030136,120]
[380344261,1755699416166,-1527.64,0.00030136,120]
[380344262,1755699416219,-532.57,0.00030136,120]
[380344263,1755699416276,-569.6,0.00030136,120]
[380344264,1755699416336,-2413.44,0.00030136,120]
[380344265,1755699416397,-400.0,0.00030136,120]
[380344266,1755699416456,-400.0,0.00030136,120]
[380344267,1755699416513,-1023.62,0.00030136,120]
[380344268,1755699416572,-730.1,0.00030136,120]
[380344269,1755699416635,-400.0,0.00030136,120]
[380344270,1755699416693,-894.95,0.00030136,120]
[380344271,1755699416749,-400.0,0.00030136,120]
[380344272,1755699416805,-1599.99,0.00030136,120]
[380344273,1755699416859,-2827.42,0.00030136,120]
[380344274,1755699416910,-1062.01,0.00030136,120]
[380344275,1755699416961,-2542.89,0.00030136,120]
[380344276,1755699417011,-2336.33,0.00030136,120]
[380344277,1755699417060,-400.0,0.00030136,120]
[380344278,1755699417109,-1739.71,0.00030136,120]
[380344279,1755699417158,-1396.22,0.00030136,120]
[380344280,1755699417206,-2673.12,0.00030136,120]
[380344281,1755699417259,-1140.38,0.00030136,120]
[380344282,1755699417310,-400.0,0.00030136,120]
[380344283,1755699417359,-400.0,0.00030136,120]
[380344284,1755699417409,-1335.4,0.00030136,120]
[380344285,1755699417456,-400.0,0.00030136,120]
[380344286,1755699417505,-982.52,0.00030136,120]
[380344287,1755699417556,-798.05,0.00030136,120]
[380344288,1755699417605,-400.0,0.00030136,120]
[380344289,1755699417656,-400.0,0.00030136,120]
[380344290,1755699417704,-450.82,0.00030136,120]
[380344291,1755699417753,-400.0,0.00030136,120]
[380344292,1755699417802,-4554.72,0.00030136,120]
[380344293,1755699417857,-2439.04,0.00030136,120]
[380344294,1755699417906,-1668.92,0.00030136,120]
[380344295,1755699417966,-2792.05,0.00030136,120]
[380344296,1755699418018,-487.13,0.00030136,120]
[380344297,1755699418071,-400.0,0.00030136,120]
[380344298,1755699418124,-400.0,0.00030136,120]
[380344299,1755699418174,-2688.58,0.00030136,120]
[380344300,1755699418222,-400.0,0.00030136,120]
[380344301,1755699418273,-458.3,0.00030136,120]
[380344302,1755699418321,-408.21,0.00030136,120]
[380344303,1755699418369,-1714.26,0.00030136,120]
[380344304,1755699418418,-3215.17,0.00030136,120]
[380344305,1755699418466,-1351.55,0.00030136,120]
[380344306,1755699418514,-400.0,0.00030136,120]
[380344307,1755699418564,-1653.66,0.00030136,120]
[380344308,1755699418616,-1347.63,0.00030136,120]
[380344309,1755699418666,-1113.72,0.00030136,120]
[380344310,1755699418717,-400.0,0.00030136,120]
[380344311,1755699418765,-472.72,0.00030136,120]
[380344312,1755699418815,-4981.99,0.00030136,60]
[380344313,1755699418867,-1715.79,0.00030136,120]
[380344314,1755699418917,-400.0,0.00030136,120]
[380344315,1755699418972,-5062.88,0.00030136,120]
[380344316,1755699419029,-400.0,0.00030136,120]
[380344317,1755699419094,-400.0,0.00030136,120]
[380344318,1755699419149,-1720.75,0.00030136,120]
[380344319,1755699419207,-1445.01,0.00030136,120]
[380344320,1755699419266,-952.49,0.00030136,120]
[380344321,1755699419326,-545.64,0.00030136,120]
[380344322,1755699419379,-400.0,0.00030136,120]
[380344323,1755699419433,-1474.65,0.00030136,120]
[380344324,1755699419486,-400.0,0.00030136,120]
[380344325,1755699419536,-1793.54,0.00030136,120]
[380344326,1755699419588,-500.0,0.00030136,120]
[380344327,1755699419639,-500.0,0.00030136,120]
[380344328,1755699419688,-500.0,0.00030136,120]
[380344329,1755699419735,-500.0,0.00030136,120]
[380344330,1755699419783,-400.0,0.00030136,120]
[380344331,1755699419832,-500.0,0.00030136,120]
[380344332,1755699419881,-500.0,0.00030136,120]
[380344333,1755699419930,-2198.78,0.00030136,120]
[380344334,1755699419981,-500.0,0.00030136,120]
[380344335,1755699420032,-500.0,0.00030136,120]
[380344336,1755699420081,-500.0,0.00030136,120]
[380344337,1755699420148,-500.0,0.00030136,120]
[380344338,1755699420219,-500.0,0.00030136,120]
[380344339,1755699420277,-500.0,0.00030136,120]
[380344340,1755699420333,-544.26715073,0.00030136,120]
[380344341,1755699420386,-400.0,0.00030136,120]
[380344342,1755699420439,-626.7,0.00030136,120]
[380344343,1755699420491,-400.0,0.00030136,120]
[380344344,1755699420542,-861.76,0.00030136,120]
[380344345,1755699420597,-1732.16,0.00030136,120]
[380344346,1755699420651,-1140.51,0.00030136,120]
[380344347,1755699420706,-3268.81,0.00030136,120]
[380344348,1755699420754,-537.74651696,0.00030136,120]
[380344349,1755699420804,-721.19,0.00030136,120]
[380344350,1755699420852,-1029.32,0.00030136,120]
[380344351,1755699421194,-198.18619358,0.00030136,120]
[380344352,1755699421243,-400.0,0.00030136,120]
[380344353,1755699421293,-400.0,0.00030136,120]
[380344354,1755699421341,-400.0,0.00030136,120]
[380344355,1755699421388,-1636.35,0.00030136,120]
[380344356,1755699421434,-1884.44,0.00030136,120]
[380344357,1755699421481,-400.0,0.00030136,120]
[380344358,1755699421531,-400.0,0.00030136,120]
[380344359,1755699421581,-556.03,0.00030136,120]
[380344360,1755699421633,-1594.56,0.00030136,120]
[380344361,1755699421685,-1444.22,0.00030136,120]
[380344362,1755699421736,-1680.18,0.00030136,120]
[380344363,1755699421785,-400.0,0.00030136,120]
[380344364,1755699421831,-1294.5,0.00030136,120]
[380344365,1755699421878,-2063.27,0.00030136,120]
[380344366,1755699421924,-400.0,0.00030136,120]
[380344367,1755699421973,-1341.07,0.00030136,120]
[380344368,1755699422023,-500.0,0.00030136,120]
[380344369,1755699422079,-500.0,0.00030136,120]
[380344370,1755699422134,-500.0,0.00030136,120]
[380344371,1755699422186,-500.0,0.00030136,120]
[380344372,1755699422252,-283.05057955,0.00030136,120]
[380344373,1755699422303,-400.0,0.00030136,120]
[380344374,1755699422353,-2333.48,0.00030136,120]
[380344375,1755699422403,-400.0,0.00030136,120]
[380344376,1755699422453,-1160.18,0.00030136,120]
[380344377,1755699422501,-1256.84,0.00030136,120]
[380344378,1755699422551,-998.05,0.00030136,120]
[380344379,1755699422600,-886.49,0.00030136,120]
[380344380,1755699422649,-503.14070027,0.00030136,120]
[380344381,1755699422702,-400.0,0.00030136,120]
[380344382,1755699422752,-400.0,0.00030136,120]
[380344383,1755699422802,-400.0,0.00030136,120]
[380344384,1755699422852,-400.0,0.00030136,120]
[380344385,1755699422902,-441.0,0.00030136,120]
[380344386,1755699422972,-400.0,0.00030136,120]
[380344387,1755699423031,-869.14,0.00030136,120]
[380344388,1755699423092,-467.11,0.00030136,120]
[380344389,1755699423150,-400.0,0.00030136,120]
[380344390,1755699423203,-591.81,0.00030136,120]
[380344391,1755699423263,-520.93,0.00030136,120]
[380344392,1755699423330,-1480.52,0.00030136,120]
[380344393,1755699423394,-1183.62,0.00030136,120]
[380344394,1755699423454,-502.42,0.00030136,120]
[380344395,1755699423518,-502.42,0.00030136,120]
[380344396,1755699423581,-502.42,0.00030136,120]
[380344397,1755699423646,-400.0,0.00030136,120]
[380344398,1755699423711,-502.42,0.00030136,120]
[380344399,1755699423770,-502.42,0.00030136,120]
[380344400,1755699423834,-502.42,0.00030136,120]
[380344401,1755699423902,-502.42,0.00030136,120]
[380344402,1755699423967,-502.42,0.00030136,120]
[380344403,1755699424035,-502.42,0.00030136,120]
[380344404,1755699424096,-1936.61,0.00030136,120]
[380344405,1755699424160,-502.42,0.00030136,120]
[380344406,1755699424222,-502.42,0.00030136,120]
[380344407,1755699424285,-502.42,0.00030136,120]
[380344408,1755699424345,-502.42,0.00030136,120]
[380344409,1755699424409,-400.0,0.00030136,120]
[380344410,1755699424470,-412.33,0.00030136,120]
[380344411,1755699424536,-1159.31,0.00030136,120]
[380344412,1755699424599,-502.42,0.00030136,120]
[380344413,1755699424661,-502.42,0.00030136,120]
[380344414,1755699424722,-502.42,0.00030136,120]
[380344415,1755699424785,-502.42,0.00030136,120]
[380344416,1755699424841,-502.42,0.00030136,120]
[380344417,1755699424896,-453.71,0.00030136,120]
[380344418,1755699424951,-1724.35,0.00030136,120]
[380344419,1755699425005,-502.42,0.00030136,120]
[380344420,1755699425067,-502.42,0.00030136,120]
[380344421,1755699425124,-1532.51,0.00030136,120]
[380344422,1755699425180,-502.42,0.00030136,120]
[380344423,1755699425237,-502.42,0.00030136,120]
[380344424,1755699425292,-400.0,0.00030136,120]
[380344425,1755699425347,-1379.85,0.00030136,120]
[380344426,1755699425407,-502.42,0.00030136,120]
[380344427,1755699425479,-400.0,0.00030136,120]
[380344428,1755699425537,-502.55,0.00030136,120]
[380344429,1755699425595,-1379.85,0.00030136,120]
[380344430,1755699425651,-1379.85,0.00030136,120]
[380344431,1755699425709,-1864.84,0.00030136,120]
[380344432,1755699425763,-1379.85,0.00030136,120]
[380344433,1755699425822,-1379.85,0.00030136,120]
[380344434,1755699425881,-1379.85,0.00030136,120]
[380344435,1755699425934,-1379.85,0.00030136,120]
[380344436,1755699425985,-1379.85,0.00030136,120]
[380344437,1755699426038,-1379.85,0.00030136,120]
[380344438,1755699426093,-1379.85,0.00030136,120]
[380344439,1755699426148,-1379.85,0.00030136,120]
[380344440,1755699426202,-1379.85,0.00030136,120]
[380344441,1755699426253,-400.0,0.00030136,120]
[380344442,1755699426304,-1379.85,0.00030136,120]
[380344443,1755699426353,-1379.85,0.00030136,120]
[380344444,1755699426404,-1379.85,0.00030136,120]
[380344445,1755699426454,-400.0,0.00030136,120]
[380344446,1755699426502,-1379.85,0.00030136,120]
[380344447,1755699426552,-1379.85,0.00030136,120]
[380344448,1755699426603,-1379.85,0.00030136,120]
[380344449,1755699426653,-745.4,0.00030136,120]
[380344450,1755699426708,-1379.85,0.00030136,120]
[380344451,1755699426761,-1379.85,0.00030136,120]
[380344452,1755699426813,-1379.85,0.00030136,120]
[380344453,1755699426872,-1639.83,0.00030136,120]
[380344454,1755699426922,-1379.85,0.00030136,120]
[380344455,1755699426972,-1379.85,0.00030136,120]
[380344456,1755699427023,-1379.92669281,0.00030136,120]
[380344457,1755699427078,-400.0,0.00030136,120]
[380344458,1755699427133,-600.64,0.00030136,120]
[380344459,1755699427185,-168.78931372,0.00030136,120]
[380344460,1755699427238,-632.25,0.00030136,120]
[380344461,1755699427291,-400.0,0.00030136,120]
[380344462,1755699427346,-1137.34,0.00030136,120]
[380344463,1755699427398,-596.42,0.00030136,120]
[380344464,1755699427459,-1408.24,0.00030136,120]
[380344465,1755699427509,-400.0,0.00030136,120]
[380344466,1755699427557,-1176.75,0.00030136,120]
[380344467,1755699428146,-761.08,0.00030136,120]
[380344468,1755699428199,-400.0,0.00030136,120]
[380344469,1755699428254,-845.89,0.00030136,120]
[380344470,1755699428304,-400.0,0.00030136,120]
[380344471,1755699428355,-1695.35,0.00030136,120]
[380344472,1755699428404,-1506.88,0.00030136,120]
[380344473,1755699428452,-845.93,0.00030136,120]
[380344474,1755699428500,-400.0,0.00030136,120]
[380344475,1755699428548,-400.0,0.00030136,120]
[380344476,1755699428599,-1187.13,0.00030136,120]
[380344477,1755699428648,-400.0,0.00030136,120]
[380344478,1755699428699,-400.0,0.00030136,120]
[380344479,1755699428749,-1153.76,0.00030136,120]
[380344480,1755699428797,-1065.48,0.00030136,120]
[380344481,1755699428846,-400.0,0.00030136,120]
[380344482,1755699428897,-1368.35,0.00030136,120]
[380344483,1755699428946,-400.0,0.00030136,120]
[380344484,1755699428998,-1054.83,0.00030136,120]
[380344485,1755699429048,-1548.45,0.00030136,120]
[380344486,1755699429097,-1355.73,0.00030136,120]
[380344487,1755699429146,-704.62,0.00030136,120]
[380344488,1755699429194,-580.51,0.00030136,120]